bitfinex/quotes_ETHUSD_20240820
["timestamp","ask_amount","ask_price","bid_price","bid_amount"]
[1724152690905,3.76633,2655.1,2654.6,2.4785]
[1724152692034,3.76614,2655.3,2654.6,2.4785]
[1724152692200,3.76634,2655.1,2654.6,2.4785]
[1724152692733,3.76721,2654.5,2653.9,2.4208]
[1724152693233,3.76696,2654.7,2653.9,37.4208]
[1724152693434,7.53394,2654.7,2653.9,37.4208]
[1724152693603,3.76696,2654.7,2653.9,37.4208]
[1724152693800,3.76696,2654.7,2654.0,3.73531554]
[1724152694625,3.76696,2654.7,2653.9,2.4208]
[1724152694846,3.76696,2654.7,2654.0,35.0]
[1724152695036,3.828,2654.9,2653.8,0.0045579]
[1724152695212,3.76803,2653.9,2653.8,0.0045579]
[1724152696940,11.85409,2653.9,2653.8,0.0045579]
[1724152697143,16.670479,2653.9,2653.8,0.0045579]
[1724152698695,12.902449,2653.9,2653.8,0.0045579]
[1724152701097,12.352449,2653.9,2653.8,0.0045579]
[1724152701448,8.584419,2653.9,2653.8,0.0045579]
[1724152702444,12.352449,2653.9,2653.8,0.0045579]
[1724152706551,16.670479,2653.9,2653.8,0.0045579]
[1724152706854,12.902449,2653.9,2653.8,0.0045579]
[1724152712502,12.352449,2653.9,2653.8,0.0045579]
[1724152713414,3.76785,2654.1,2653.8,2.3470579]
[1724152713960,3.0,2654.3,2653.8,2.3470579]
[1724152714118,3.7679,2654.0,2653.8,2.3425]
[1724152718147,7.59562,2654.2,2653.8,2.3425]
[1724152718347,3.76778,2654.1,2653.8,2.3425]
[1724152720564,3.828,2654.2,2653.8,2.3425]
[1724152721138,0.39348477,2654.4,2653.8,2.57675]
[1724152721465,3.76754,2654.3,2653.8,2.57675]
[1724152721666,7.53544,2654.2,2653.8,37.3425]
[1724152721880,3.76775,2654.1,2653.8,37.3425]
[1724152722235,3.76803,2654.0,2653.8,2.3425]
[1724152722567,3.76803,2653.9,2653.8,2.3425]
[1724152725783,3.76795,2654.0,2653.8,2.3425]
[1724152730308,7.59563,2654.2,2653.8,2.3425]
[1724152731175,3.828,2654.2,2653.8,2.3425]
[1724152732821,7.59563,2654.2,2653.8,2.3425]
[1724152734435,3.828,2654.2,2653.8,2.3425]
[1724152737432,3.76747,2654.3,2653.8,2.3425]
[1724152738038,7.53502,2654.3,2653.8,2.3425]
[1724152738586,3.76747,2654.3,2653.8,2.3425]
[1724152738725,7.53504,2654.3,2653.8,2.3425]
[1724152739132,3.76747,2654.3,2653.8,2.3425]
[1724152739457,3.76761,2654.2,2653.8,2.3425]
[1724152741630,3.76749,2654.3,2653.8,2.3425]
[1724152742155,3.76769,2654.2,2653.8,2.3425]
[1724152743662,3.76776,2654.1,2653.8,2.3425]
[1724152744763,3.76763,2654.2,2653.8,2.3425]
[1724152745057,3.76777,2654.1,2653.8,2.3425]
[1724152746644,3.7679,2654.0,2653.8,2.3425]
[1724152748348,3.76777,2654.1,2653.8,2.3425]
[1724152748834,7.53561,2654.1,2653.8,2.3425]
[1724152749780,3.7679,2654.0,2653.8,2.3425]
[1724152750441,1.597,2653.9,2653.8,2.3425]
[1724152750648,3.76766,2654.2,2653.8,2.3425]
[1724152750875,1.597,2653.9,2653.8,2.3425]
[1724152756605,1.597,2654.1,2653.8,2.3425]
[1724152757414,5.33065746,2654.3,2653.8,2.3425]
[1724152757564,1.597,2654.0,2653.8,2.3425]
[1724152758907,5.36496,2654.0,2653.5,9.695]
[1724152759109,1.597,2653.8,2653.5,9.695]
[1724152760313,1.597,2653.8,2653.5,2.385]
[1724152763940,1.597,2653.8,2653.3,2.75272933]
[1724152763941,1.597,2653.6,2653.3,2.75272933]
[1724152764235,11.30667,2653.3,2653.2,0.0045579]
[1724152764438,16.1917997,2653.3,2653.2,0.0045579]
[1724152764622,6.76889,2653.3,2653.2,0.0045579]
[1724152764805,10.90147343,2653.3,2653.2,0.0045579]
[1724152765536,17.88201165,2653.3,2653.2,0.0045579]
[1724152765898,14.11312165,2653.3,2653.2,0.0045579]
[1724152766099,13.56312165,2653.3,2653.2,0.0045579]
[1724152766391,15.80112165,2653.3,2653.2,0.0045579]
[1724152766597,15.40857699,2653.3,2653.2,0.0045579]
[1724152766792,4.56585189,2653.3,2653.2,0.0045579]
[1724152767143,1.56585189,2653.5,2653.2,0.0045579]
[1724152767300,8.33434189,2653.6,2653.2,0.0045579]
[1724152767636,3.0,2653.5,2653.2,0.0045579]
[1724152771726,6.76862,2653.5,2653.2,0.0045579]
[1724152772130,3.76885,2653.4,2653.2,0.0045579]
[1724152772332,6.20105,2653.4,2653.2,0.0045579]
[1724152772571,9.96991,2653.4,2653.2,0.0045579]
[1724152772774,3.76889,2653.3,2653.2,0.0045579]
[1724152773092,7.53778,2653.3,2653.2,0.0045579]
[1724152774778,3.76906,2653.2,2652.8,7.31]
[1724152775287,3.76903,2653.2,2652.7,2.4800774]
[1724152775455,3.76889,2653.3,2652.7,4.00498043]
[1724152775778,7.53786,2653.3,2652.7,4.00498043]
[1724152776348,7.53786,2653.3,2652.7,2.4800774]
[1724152776349,3.76908,2653.2,2652.7,2.4800774]
[1724152776548,7.5385,2653.1,2652.7,2.4800774]
[1724152776986,3.76944,2653.0,2652.7,0.0112774]
[1724152777277,7.53855,2653.1,2652.7,0.0112774]
[1724152777487,3.76934,2653.0,2652.7,0.0112774]
[1724152777703,4.523105,2653.1,2652.7,0.0112774]
[1724152778607,2.4542,2653.2,2652.7,0.0112774]
[1724152778608,3.76915,2653.2,2652.7,0.0112774]
[1724152779101,3.76897,2653.3,2652.7,0.0112774]
[1724152779257,3.76892,2653.3,2652.7,0.0112774]
[1724152779464,3.76905,2653.2,2652.7,0.0112774]
[1724152779662,3.76892,2653.3,2652.7,0.0112774]
[1724152779862,13.05789,2653.5,2652.7,0.29783043]
[1724152779863,3.76876,2653.4,2652.7,0.29783043]
[1724152780398,3.76901,2653.3,2652.7,0.0112774]
[1724152780600,16.82664,2653.5,2652.7,0.0112774]
[1724152780807,10.6037,2653.5,2652.7,0.0112774]
[1724152780962,10.6037,2653.5,2652.8,2.3389]
[1724152781344,12.0323626,2653.5,2652.8,2.3389]
[1724152781862,3.76899,2653.3,2652.8,2.3389]
[1724152782466,7.53771,2653.4,2652.8,2.3389]
[1724152782921,3.76889,2653.3,2652.8,2.3389]
[1724152783680,12.0322826,2653.5,2652.8,2.3389]
[1724152783882,6.0257,2653.7,2652.9,2.3437]
[1724152783883,3.7684,2653.7,2652.9,2.3437]
[1724152784330,7.53681,2653.7,2652.9,2.3437]
[1724152784514,4.76490289,2653.8,2652.9,6.11315]
[1724152784696,3.0,2653.7,2653.0,2.4801]
[1724152784881,3.0,2653.7,2653.0,3.5475021]
[1724152785333,3.76813,2653.9,2653.1,2.4606]
[1724152785538,9.16869189,2654.1,2653.1,2.4606]
[1724152785539,7.60284,2654.1,2653.1,2.4606]
[1724152785823,7.60284,2654.1,2653.3,2.4606]
[1724152785824,3.76796,2654.0,2653.3,2.4606]
[1724152786028,3.835,2654.1,2653.3,2.4606]
[1724152786183,3.76865,2653.5,2653.1,2.4606]
[1724152786591,3.76886,2653.4,2653.1,2.4606]
[1724152786898,3.76839,2653.7,2653.1,3.43766]
[1724152787082,3.76856,2653.6,2653.1,3.43766]
[1724152787712,7.60323,2653.8,2653.1,3.43766]
[1724152787928,7.60285,2654.1,2653.1,0.97706]
[1724152788134,3.0,2654.0,2653.2,2.447]
[1724152788424,6.768,2654.0,2653.3,0.719322]
[1724152788797,3.76804,2653.9,2653.3,0.719322]
[1724152790028,6.7679,2654.0,2653.3,0.719322]
[1724152790549,3.76804,2653.9,2653.3,0.719322]
[1724152790850,3.76804,2653.9,2653.4,0.3166322]
[1724152791853,6.76797,2654.0,2653.4,0.3166322]
[1724152792061,3.76805,2653.9,2653.5,2.4136]
[1724152792709,3.0,2654.0,2653.5,2.4136]
[1724152793009,6.76793,2654.0,2653.5,2.4136]
[1724152793217,6.76791,2654.0,2653.5,2.4136]
[1724152794509,3.76806,2653.9,2653.5,2.4136]
[1724152794711,3.0,2654.0,2653.5,2.4136]
[1724152795957,4.22829436,2654.2,2653.5,2.65496]
[1724152795958,3.0,2654.1,2653.5,2.65496]
[1724152796987,6.76775,2654.1,2653.5,2.65496]
[1724152797576,3.7679,2654.0,2653.5,2.65496]
[1724152797793,3.76812,2653.9,2653.5,2.4136]
[1724152798646,3.76824,2653.8,2653.5,2.4136]
[1724152801161,6.2554,2653.9,2653.1,2.436]
[1724152801365,3.76889,2653.3,2653.1,2.436]
[1724152801850,7.53786,2653.3,2653.1,2.436]
[1724152802251,3.76889,2653.3,2653.1,2.436]
[1724152802451,1.598,2653.2,2652.9,2.2977]
[1724152802776,1.598,2653.0,2652.9,2.2977]
[1724152804494,3.76882,2653.4,2652.9,2.52859774]
[1724152804722,3.76854,2653.6,2652.9,2.52859774]
[1724152804923,3.76868,2653.5,2652.9,2.52859774]
[1724152805238,8.33411189,2653.8,2653.0,2.4063]
[1724152805377,3.0,2653.7,2653.2,2.3512]
[1724152805581,3.76846,2653.6,2653.2,2.3512]
[1724152805781,3.76846,2653.6,2652.9,0.23089774]
[1724152805782,3.76876,2653.4,2652.9,0.23089774]
[1724152806195,8.39985189,2653.7,2652.9,0.23089774]
[1724152806196,6.834,2653.7,2652.9,0.23089774]
[1724152806399,3.7685,2653.6,2653.0,2.3255]
[1724152806731,10.60243,2653.7,2653.2,2.3255]
[1724152807997,3.76848,2653.6,2653.2,2.3255]
[1724152808220,3.76861,2653.5,2653.1,35.0]
[1724152808536,3.76861,2653.5,2653.0,2.37]
[1724152808734,7.53797,2653.3,2653.0,2.37]
[1724152808902,7.53794,2653.3,2653.0,2.37]
[1724152809096,7.53796,2653.3,2653.0,2.37]
[1724152809302,7.53796,2653.3,2652.9,7.31]
[1724152809303,3.76918,2653.1,2652.7,2.4626774]
[1724152811712,3.76899,2653.3,2652.7,2.75184043]
[1724152811939,3.76955,2652.9,2652.7,0.0112774]
[1724152813712,7.60323,2653.1,2652.7,0.0112774]
[1724152813713,3.76923,2653.1,2652.7,0.0112774]
[1724152814049,3.76894,2653.3,2652.7,0.0112774]
[1724152814050,9.10378189,2653.3,2652.8,2.2501]
[1724152814348,9.10378189,2653.3,2652.8,2.51913303]
[1724152814349,3.76894,2653.3,2652.8,2.51913303]
[1724152815560,8.33451189,2653.5,2652.8,2.51913303]
[1724152815860,6.76885,2653.4,2652.8,2.51913303]
[1724152816012,3.76885,2653.4,2652.8,2.51913303]
[1724152816213,3.76885,2653.4,2652.9,0.25304104]
[1724152816455,3.76889,2653.3,2652.9,0.25304104]
[1724152816828,8.33451189,2653.5,2653.0,2.4923]
[1724152817631,6.76866,2653.5,2653.0,2.4923]
[1724152817845,8.33451189,2653.5,2653.0,2.4923]
[1724152818016,12.10322189,2653.5,2653.0,2.4923]
[1724152818217,3.76877,2653.4,2653.0,2.4923]
[1724152818418,3.76877,2653.4,2653.0,3.26036828]
[1724152820362,8.33451189,2653.5,2653.0,3.26036828]
[1724152820574,3.76866,2653.5,2653.0,3.26036828]
[1724152821815,3.76875,2653.4,2653.0,3.26036828]
[1724152822154,7.53738,2653.5,2653.0,3.26036828]
[1724152822364,3.76889,2653.4,2653.0,2.4923]
[1724152822562,3.76899,2653.3,2653.0,2.4923]
[1724152822748,3.76889,2653.4,2653.0,2.4923]
[1724152822749,3.76907,2653.2,2653.0,2.4923]
[1724152822950,3.76907,2653.2,2652.7,35.0112774]
[1724152822951,3.76907,2653.2,2652.7,37.4057774]
[1724152823118,3.76907,2653.2,2652.7,6.14109294]
[1724152823119,3.76933,2653.0,2652.7,6.14109294]
[1724152823318,3.76933,2653.0,2652.7,2.4057774]
[1724152824218,3.76958,2652.9,2652.7,2.4057774]
[1724152824760,3.76933,2653.0,2652.7,2.4057774]
[1724152825058,3.76926,2653.1,2652.7,2.4057774]
[1724152825388,5.33465189,2653.4,2652.7,2.68925043]
[1724152825673,3.76905,2653.2,2652.7,2.4057774]
[1724152825838,7.53817,2653.2,2652.7,2.4057774]
[1724152826437,3.76926,2653.1,2652.7,2.4057774]
[1724152826767,3.76905,2653.2,2652.7,2.4057774]
[1724152826985,7.53819,2653.2,2652.7,2.4057774]
[1724152827135,3.76905,2653.2,2652.7,2.4057774]
[1724152827837,7.53818,2653.2,2652.7,2.4057774]
[1724152828159,3.76905,2653.2,2652.7,2.4057774]
[1724152828337,3.76905,2653.2,2652.7,2.68925043]
[1724152828738,3.76905,2653.2,2652.7,2.4057774]
[1724152829262,5.33466189,2653.4,2652.7,35.0112774]
[1724152829470,3.76881,2653.4,2652.8,2.3745]
[1724152830524,1.598,2653.1,2652.8,2.3745]
[1724152832149,1.598,2652.9,2652.8,2.3745]
[1724152832467,1.56585189,2653.5,2652.8,3.73531554]
[1724152832637,1.56585189,2653.5,2652.9,2.388]
[1724152832846,5.33446189,2653.5,2652.9,2.388]
[1724152833056,3.76875,2653.4,2652.9,2.388]
[1724152833654,3.76893,2653.3,2652.9,2.388]
[1724152834253,3.76912,2653.2,2652.9,2.388]
[1724152834479,7.53827,2653.2,2652.9,2.388]
[1724152834676,3.76919,2653.1,2652.7,9.7285774]
[1724152835376,3.76932,2653.0,2652.7,9.7285774]
[1724152837542,3.76932,2653.0,2652.7,2.4185774]
[1724152837793,3.76946,2652.9,2652.7,2.4185774]
[1724152839366,3.76946,2652.9,2652.7,0.0112774]
[1724152841348,4.760795,2652.9,2652.7,0.0112774]
[1724152841892,3.76946,2652.9,2652.7,0.0112774]
[1724152842094,3.76946,2652.9,2652.7,2.2704774]
[1724152842393,3.76932,2653.0,2652.7,2.2704774]
[1724152842783,3.76947,2652.9,2652.7,2.2704774]
[1724152844029,3.76947,2652.9,2652.7,0.0112774]
[1724152845719,3.76932,2653.0,2652.7,0.0112774]
[1724152846854,7.53875,2653.0,2652.7,0.0112774]
[1724152847416,3.76932,2653.0,2652.7,0.0112774]
[1724152847617,5.33507189,2653.1,2652.7,0.0112774]
[1724152849323,1.56585189,2653.2,2652.8,2.368]
[1724152851268,1.56585189,2653.1,2652.8,2.368]
[1724152851650,5.33489189,2653.2,2652.8,2.368]
[1724152851825,1.56585189,2653.1,2652.8,2.368]
[1724152854578,1.598,2652.9,2652.8,2.368]
[1724152855066,1.598,2652.9,2652.7,0.0112774]
[1724152855232,1.56585189,2653.1,2652.7,0.0112774]
[1724152855442,1.598,2652.9,2652.7,0.0112774]
[1724152858167,6.43770019,2652.9,2652.7,0.0112774]
[1724152858503,10.20726019,2652.9,2652.7,0.0112774]
[1724152858789,6.43770019,2652.9,2652.7,0.0112774]
[1724152859450,3.7696,2652.8,2652.7,0.0112774]
[1724152859655,7.5392,2652.8,2652.7,0.0112774]
[1724152859883,8.94431921,2652.8,2652.7,0.0112774]
[1724152860416,5.3676,2652.8,2652.7,0.0112774]
[1724152860982,1.598,2652.8,2652.7,0.0112774]
[1724152863222,3.16385189,2653.2,2652.7,0.0112774]
[1724152863373,1.598,2653.0,2652.7,0.0112774]
[1724152865350,1.56585189,2653.2,2652.7,0.0112774]
[1724152865351,1.598,2652.8,2652.7,0.0112774]
[1724152868310,3.76913,2653.2,2652.8,2.4744]
[1724152868311,1.56585189,2653.2,2652.8,2.4744]
[1724152868523,1.598,2653.2,2652.8,2.4744]
[1724152868984,1.598,2653.2,2652.9,35.0]
[1724152870266,1.56585189,2653.3,2652.8,2.4744]
[1724152870267,1.598,2653.0,2652.8,2.4744]
[1724152870665,1.598,2653.0,2652.8,37.4744]
[1724152870912,1.598,2653.0,2652.8,41.20971554]
[1724152871279,1.598,2653.0,2652.8,6.20971554]
[1724152871596,1.598,2653.0,2652.8,2.4744]
[1724152872370,1.598,2653.0,2652.7,2.3567774]
[1724152876106,1.598,2653.2,2652.7,2.3567774]
[1724152876624,5.33475189,2653.3,2652.7,2.3567774]
[1724152876625,1.598,2653.0,2652.7,2.3567774]
[1724152877722,3.83595189,2653.4,2652.7,6.1264474]
[1724152877873,1.598,2653.2,2652.8,3.73531554]
[1724152878215,1.598,2653.2,2652.9,2.2973]
[1724152878511,1.598,2653.4,2652.9,2.2973]
[1724152878720,1.56585189,2653.5,2652.9,2.2973]
[1724152878908,1.598,2653.2,2652.9,2.2973]
[1724152879720,1.598,2653.2,2653.0,35.0]
[1724152880574,1.598,2653.2,2652.7,6.1157074]
[1724152881089,1.598,2653.2,2652.8,35.0]
[1724152881624,1.598,2653.2,2652.7,2.3459774]
[1724152884509,1.598,2653.2,2652.7,6.08129294]
[1724152884825,1.598,2653.2,2652.7,2.3459774]
[1724152884980,1.598,2653.2,2652.8,35.0]
[1724152885678,1.598,2653.2,2652.7,2.3459774]
[1724152886195,1.598,2653.2,2652.7,37.3459774]
[1724152887979,3.99085189,2653.5,2652.7,37.3459774]
[1724152887980,1.56585189,2653.5,2652.8,2.3553]
[1724152888204,1.9626382,2653.6,2652.8,2.3553]
[1724152888205,0.41191192,2653.4,2653.0,2.3553]
[1724152888494,1.56585189,2653.7,2653.0,6.1246]
[1724152888686,6.0283382,2653.8,2653.2,6.12432]
[1724152888687,1.598,2653.8,2653.2,6.12432]
[1724152889015,0.41197469,2653.7,2653.2,2.3553]
[1724152889184,1.598,2653.8,2653.2,3.368236]
[1724152889384,1.598,2653.8,2653.2,7.137226]
[1724152889584,1.598,2653.8,2653.3,35.0]
[1724152889879,1.598,2653.6,2653.3,35.0]
[1724152893323,1.598,2653.4,2652.7,14.20750314]
[1724152893658,1.598,2653.0,2652.7,7.3212774]
[1724152893950,1.598,2653.0,2652.7,42.3212774]
[1724152894155,1.598,2653.0,2652.7,35.0112774]
[1724152895911,1.598,2653.0,2652.7,0.0112774]
[1724152899053,3.7689,2653.3,2652.7,0.0112774]
[1724152899054,1.598,2653.2,2652.7,0.0112774]
[1724152900447,2.3495,2653.1,2652.7,0.0112774]
[1724152900859,1.598,2653.0,2652.7,0.0112774]
[1724152902481,1.598,2653.0,2652.7,35.0112774]
[1724152903626,1.598,2653.2,2652.7,37.3008774]
[1724152904805,1.598,2653.2,2652.7,41.0705974]
[1724152909223,1.598,2653.2,2652.8,2.3186]
[1724152909528,1.598,2653.2,2652.8,6.05391554]
[1724152909831,1.598,2653.2,2652.9,35.0]
[1724152910178,7.62103189,2653.6,2652.9,35.0]
[1724152910505,1.56585189,2653.6,2653.0,6.14053]
[1724152910687,1.598,2653.6,2653.0,6.14053]
[1724152911227,1.598,2653.6,2653.1,35.0]
[1724152911446,3.16385189,2653.8,2653.2,0.81568257]
[1724152911730,1.598,2653.8,2653.2,0.81568257]
[1724152912092,1.598,2653.8,2653.3,35.0]
[1724152912429,1.598,2653.6,2653.2,0.81568257]
[1724152918720,1.598,2653.6,2653.0,9.6813]
[1724152919225,1.598,2653.4,2653.0,7.31]
[1724152919815,7.82593,2653.2,2653.0,7.31]
[1724152920204,4.0569,2653.2,2653.0,7.31]
[1724152920495,1.598,2653.2,2653.0,7.31]
[1724152920705,1.598,2653.4,2653.0,7.31]
[1724152922230,1.598,2653.2,2653.0,7.31]
[1724152922435,5.3671,2653.2,2653.0,7.31]
[1724152923647,3.76943,2653.0,2652.7,0.0112774]
[1724152923800,1.598,2652.9,2652.7,0.0112774]
[1724152924735,5.36742,2653.0,2652.7,0.0112774]
[1724152925302,2.3711,2653.1,2652.7,0.0112774]
[1724152925538,1.598,2653.1,2652.7,0.0112774]
[1724152925743,1.598,2652.9,2652.7,0.0112774]
[1724152925890,7.71376,2652.9,2652.7,0.0112774]
[1724152926520,1.598,2652.9,2652.7,0.0112774]
[1724152927632,3.7696,2652.8,2652.7,0.0112774]
[1724152927833,1.598,2652.9,2652.7,0.0112774]
[1724152928455,1.56585189,2653.2,2652.7,0.0112774]
[1724152928655,1.598,2653.0,2652.7,0.0112774]
[1724152929150,1.598,2653.0,2652.7,0.28080043]
[1724152929334,5.36703,2653.2,2652.7,0.28080043]
[1724152929538,1.598,2653.0,2652.7,0.0112774]
[1724152933564,3.76921,2653.1,2652.7,0.0112774]
[1724152933565,1.598,2652.8,2652.7,0.0112774]
[1724152937132,5.36733,2653.0,2652.7,0.0112774]
[1724152937534,3.76946,2652.9,2652.7,0.0112774]
[1724152937734,5.3676,2652.8,2652.7,0.0112774]
[1724152937980,1.598,2652.8,2652.7,0.0112774]
[1724152938544,1.56585189,2653.3,2652.7,2.4240774]
[1724152938759,9.27438189,2653.7,2652.9,2.4128]
[1724152938958,9.13483,2653.7,2652.9,2.4128]
[1724152939167,5.3664,2653.7,2652.9,2.4128]
[1724152939409,5.3664,2653.7,2652.8,4.05489303]
[1724152939410,5.3664,2653.7,2653.1,2.4128]
[1724152941031,1.598,2653.7,2653.1,2.4128]
[1724152942547,1.598,2653.7,2653.1,6.18189]
[1724152942771,1.598,2653.7,2653.2,3.76901]
[1724152942939,1.598,2654.0,2653.3,2.38596752]
[1724152943156,1.598,2654.0,2653.4,0.69085603]
[1724152943492,1.598,2654.0,2653.5,2.4638]
[1724152944680,1.598,2654.2,2653.5,6.23236]
[1724152945720,1.598,2654.2,2653.6,2.3955]
[1724152945900,1.598,2654.2,2653.7,0.616403]
[1724152946087,1.598,2654.2,2653.6,2.3955]
[1724152947393,1.598,2654.2,2653.6,6.16396]
[1724152948199,1.95971222,2654.7,2653.8,2.4986]
[1724152948511,1.95971222,2654.7,2654.0,6.26648]
[1724152948512,1.598,2654.7,2654.0,6.26648]
[1724152948683,1.598,2654.9,2654.2,2.4093]
[1724152949023,5.3645,2655.0,2654.2,6.17689]
[1724152949199,5.3645,2655.0,2654.2,7.171318]
[1724152949507,5.3645,2655.0,2654.3,2.4093]
[1724152949711,1.598,2655.0,2654.4,0.07533742]
[1724152949919,5.36455,2655.0,2654.3,2.4093]
[1724152950070,9.13114,2655.0,2654.3,3.2862308]
[1724152950275,1.598,2654.8,2654.3,3.2862308]
[1724152951411,1.598,2654.8,2654.4,0.07533746]
[1724152951627,1.598,2655.0,2654.4,0.07533746]
[1724152951824,1.598,2654.8,2654.3,2.4093]
[1724152955582,1.598,2654.6,2654.3,2.4093]
[1724152955985,1.598,2654.6,2654.1,2.4879]
[1724152956316,1.598,2654.6,2654.1,3.636644]
[1724152956521,1.598,2654.6,2654.1,7.404344]
[1724152957287,1.598,2654.6,2654.1,3.636644]
[1724152957487,1.598,2654.6,2654.2,2.4023]
[1724152957704,1.598,2654.6,2654.3,0.7318784]
[1724152957902,1.598,2654.8,2654.3,0.7318784]
[1724152960606,1.598,2654.6,2654.3,0.7318784]
[1724152960811,1.598,2654.6,2654.2,2.4023]
[1724152962346,1.598,2654.4,2654.0,9.6082]
[1724152962551,1.598,2654.4,2654.0,2.2982]
[1724152963844,5.36543,2654.4,2654.0,2.2982]
[1724152964158,1.598,2654.4,2654.0,2.52802]
[1724152965841,1.598,2654.6,2654.1,0.0753469]
[1724152966069,1.598,2654.6,2654.0,2.52802]
[1724152966386,2.4813,2655.0,2654.2,2.3239]
[1724152966597,1.598,2655.0,2654.4,2.3239]
[1724152966884,1.598,2654.8,2654.4,2.3239]
[1724152967962,1.598,2654.8,2654.4,2.55629]
[1724152968287,1.598,2654.8,2654.4,2.3239]
[1724152969011,1.598,2654.6,2654.1,10.329098]
[1724152969361,5.36508,2654.6,2654.1,10.329098]
[1724152970185,1.598,2654.4,2654.1,10.329098]
[1724152970367,1.598,2654.4,2654.1,3.019098]
[1724152970688,1.598,2654.4,2654.1,2.3895]
[1724152970847,1.598,2654.4,2653.9,2.3414]
[1724152973443,1.598,2654.4,2653.8,2.392]
[1724152973444,1.598,2654.2,2653.8,2.392]
[1724152974155,1.598,2654.2,2653.7,7.31]
[1724152974396,5.36562,2654.2,2653.7,22.24747]
[1724152976786,1.598,2654.2,2653.7,22.24747]
[1724152977038,1.598,2654.2,2653.7,26.01571]
[1724152977279,4.0274,2654.4,2653.7,26.01571]
[1724152977482,7.79475,2654.4,2653.8,2.834041]
[1724152977878,1.598,2654.2,2653.8,2.834041]
[1724152980622,1.598,2654.0,2653.4,7.31]
[1724152980749,1.598,2653.5,2653.0,7.31]
[1724152980949,1.598,2653.1,2652.7,7.3212774]
[1724152981197,1.598,2652.9,2652.8,1.00848303]
[1724152981405,1.598,2652.9,2652.7,0.0112774]
[1724152981951,1.598,2653.0,2652.7,0.0112774]
[1724152984451,3.76904,2653.2,2652.7,0.0112774]
[1724152987495,7.53819,2653.2,2652.7,0.0112774]
[1724152988696,3.76904,2653.2,2652.7,0.0112774]
[1724152989454,3.76918,2653.1,2652.7,0.0112774]
[1724152989896,3.76904,2653.2,2652.7,0.0112774]
[1724152989897,3.76933,2653.0,2652.7,0.0112774]
[1724152990799,3.7696,2652.8,2652.7,0.0112774]
[1724152991395,3.76933,2653.0,2652.7,0.0112774]
[1724152993257,3.76946,2652.9,2652.7,0.0112774]
[1724152993463,2.3235,2652.9,2652.7,0.0112774]
[1724152993767,6.09298,2652.9,2652.7,0.0112774]
[1724152994107,4.755831,2652.8,2652.7,0.0112774]
[1724152995689,0.986231,2652.8,2652.7,0.0112774]
[1724152995891,4.755831,2652.8,2652.7,0.0112774]
[1724152999368,10.819731,2652.8,2652.7,0.0112774]
[1724153002406,7.050131,2652.8,2652.7,0.0112774]
[1724153003897,3.7696,2652.8,2652.7,0.0112774]
[1724153010471,5.3676,2652.8,2652.7,0.0112774]
[1724153016017,9.1372,2652.8,2652.7,0.0112774]
[1724153016531,7.6962,2652.8,2652.7,0.0112774]
[1724153016971,11.4658,2652.8,2652.7,0.0112774]
[1724153017175,8.84278,2652.8,2652.7,0.0112774]
[1724153017569,6.51418,2652.8,2652.7,0.0112774]
[1724153017801,5.3676,2652.8,2652.7,0.0112774]
[1724153018973,9.1372,2652.8,2652.7,0.0112774]
[1724153019679,5.3676,2652.8,2652.7,0.0112774]
[1724153020080,9.1372,2652.8,2652.7,0.0112774]
[1724153022089,15.3506,2652.8,2652.7,0.0112774]
[1724153022312,17.262595,2652.8,2652.7,0.0112774]
[1724153022738,13.492995,2652.8,2652.7,0.0112774]
[1724153027743,15.05884689,2652.8,2652.7,0.0112774]
[1724153028036,13.492995,2652.8,2652.7,0.0112774]
[1724153028407,22.38174317,2652.8,2652.7,0.0112774]
[1724153028731,18.61214317,2652.8,2652.7,0.0112774]
[1724153028890,20.812595,2652.8,2652.7,0.0112774]
[1724153029102,26.54390382,2652.8,2652.7,7.4e-06]
[1724153029294,26.54390382,2652.8,2651.5,2.4134]
[1724153029295,3.77129,2651.7,2651.5,2.4134]
[1724153029543,1.598,2651.6,2651.5,2.4134]
[1724153030352,1.598,2651.6,2651.2,2.475]
[1724153030523,3.77102,2651.8,2651.2,2.475]
[1724153030524,1.598,2651.4,2651.2,2.475]
[1724153030696,1.598,2651.6,2651.2,2.425]
[1724153030892,5.33934068,2652.2,2651.2,3.73531554]
[1724153031135,1.598,2651.8,2651.3,3.84706575]
[1724153031342,1.598,2651.8,2651.3,3.77164]
[1724153031749,1.598,2651.8,2651.3,7.54329]
[1724153032046,1.598,2651.8,2651.4,3.77159]
[1724153032249,1.598,2651.8,2651.5,0.754323]
[1724153032843,1.598,2651.8,2651.5,4.525743]
[1724153033466,1.598,2652.0,2651.6,3.7713]
[1724153033643,1.598,2652.0,2651.5,4.525653]
[1724153033644,1.598,2652.0,2651.5,8.297033]
[1724153033829,1.598,2652.0,2651.6,2.4191]
[1724153034964,1.598,2652.0,2651.7,2.3508]
[1724153035853,1.598,2652.2,2651.8,2.4407]
[1724153036354,1.598,2652.2,2651.8,3.061886]
[1724153036560,1.598,2652.2,2651.9,2.3543]
[1724153042224,1.598,2652.4,2651.9,6.12515]
[1724153042527,5.33838068,2652.9,2652.0,3.77072]
[1724153042877,1.598,2652.5,2652.1,2.812172]
[1724153046074,1.598,2652.3,2652.0,35.0]
[1724153046437,1.598,2652.3,2651.8,2.3939]
[1724153046832,1.598,2652.3,2652.0,2.2607]
[1724153048851,1.598,2652.5,2652.0,6.03136]
[1724153049039,1.598,2652.5,2652.0,13.53734554]
[1724153049236,1.598,2652.7,2652.2,2.3612]
[1724153050578,1.598,2652.5,2652.2,2.3612]